{"text_format":"3","workbook":"xlsx","n_sheets":3,"sheets":["Dateneingabe","Export","Daten"],"not_rendered":{"defined_names":8},"read":"whole","date_system":"1900"}

{"sheet":"Dateneingabe","index":0,"n_rows":66,"n_cols":13,"rows_kept":66,"merged":[[12,2,12,5],[15,2,15,5],[24,3,24,9],[27,4,27,9],[30,3,30,9],[33,4,33,9],[36,3,36,9],[50,3,50,6],[50,8,50,10],[50,12,50,13],[56,4,56,10],[58,3,58,13],[59,3,59,9],[59,10,59,13],[60,3,60,13],[65,3,65,8],[65,10,65,13]]}
["TLN-Formular \"Ausschreibungen\"",{"$nulls":7},"[Version: 1.1.2018]"]
[]
[]
[{"$nulls":9},"Schlüssel \"Kategorie\":"]
[null,null,"Erläuterungen/Hinweise:",{"$nulls":6},"AUS","TL-, Trainer-C-, JL-Ausbildung u. ä."]
[{"$nulls":9},"FVD","Foto | Video"]
[null,null,"Die mit * gekennzeichneten Felder sind Pflichtfelder",{"$nulls":6},"JFB","Jugend – Ausbildung"]
[{"$nulls":9},"JGD","Jugend"]
[null,null,{"$f":"(IF(AND(D31=\"\",L31=\"\"),\"Es sind noch nicht alle Pflichtfelder ausgefüllt - siehe\",IF(AND(L31=\"x\",OR(D34=\"\",E34=\"\")),\"Es sind noch nicht alle Pflichtfelder ausgefüllt - siehe\",IF(AND(D25=\"\",L25=\"\"),\"Es sind noch nicht alle Pflichtfelder ausgefüllt - siehe\",IF(AND(L25=\"x\",E28=\"\"),\"Es sind noch nicht alle Pflichtfelder ausgefüllt - siehe\",IF(OR(D37=\"\",D44=\"\",D51=\"\",I51=\"\",M51=\"\"),\"Es sind noch nicht alle Pflichtfelder ausgefüllt - siehe\",\"\"))))))","v":"Es sind noch nicht alle Pflichtfelder ausgefüllt - siehe"},{"$nulls":6},"MED","Medizin"]
[{"$nulls":3},{"$f":"IF(C9=\"\",\"\",\"-unterlegte Felder!\")","v":"-unterlegte Felder!"},{"$nulls":5},"SON","Allgemeine Veranstaltungen | Sonstiges"]
[{"$nulls":9},"SPK","Spezialkurse | DTSA"]
[null,null,"Datensatz bitte genau wie ausgewiesen bezeichnen!:",{"$nulls":6},"TTA","Technisches Tauchen / Apnoe"]
[null,null,{"$f":"D66","v":""},{"$nulls":6},"UMW","Umwelt"]
[{"$nulls":9},"ÜVA","VDST-, LV- u. a. überregionale Veranstaltungen"]
[null,null,"Ausschreibung bitte genau wie ausgewiesen bezeichnen!:"]
[null,null,{"$f":"Export!L2","v":""}]
[]
[null,null,"Hinweis:"]
[null,null,"Im TLN-Infoheft erscheint nur der u. a. Kurztext."]
[null,null,"Für die Ausschreibung auf den TLN-Netzseiten ist diesem Formular die ausführliche Ausschreibung im PDF-Format beizufügen."]
[null,null,"Die Ausschreibung ist an keine Form gebunden. Sie darf aber 500 KB Speichergröße nicht überschreiten!"]
[]
[]
[]
[null,null,"Ausrichter*:",{"$nulls":9}," freie Eingabe [x = ja]*"]
[{"$nulls":3},{"$f":"IF(L25=\"x\",\"\",\"für Ausschreibungen des/der TLN, TLN-Vereine, VDST, LSB, VBG!\")","v":"für Ausschreibungen des/der TLN, TLN-Vereine, VDST, LSB, VBG!"},{"$nulls":8},"  *) nur für sonstige Ausrichter (ausschl. rechtsfähige Personen und Personenvereinigungen)"]
[]
[{"$nulls":3},{"$f":"IF(L25=\"x\",\"07/9999\",\"\")","v":""}]
[]
[]
[null,null,"Veranstaltung*:",{"$nulls":9}," freie Eingabe [x = ja]"]
[]
[{"$nulls":3},"Kategorie","Veranstaltung"]
[]
[]
[]
[null,null,"Ort*:"]
[]
[]
[null,null,"Kosten:",null," Euro"]
[]
[]
[{"$nulls":3},"am / vom*",null,"bis"]
[null,null,"Datum*:"]
[]
[{"$nulls":3},"Termin 1",null,"Termin 2"]
[null,null,"Anmeldeschluss:"]
[]
[]
[{"$nulls":3},"Vor- und Nachname / Verein",{"$nulls":4},"E-Mail-Adresse:"]
[null,null,"Ansprechpartner*:",{"$nulls":8},"@"]
[]
[]
[]
[null,null,"Die Ausschreibung erscheint wie folgt (mit ggfs. [1] / [2] Hinweisen bzw. Erläuterungen):"]
[]
[{"$nulls":3},"Kategorie:",{"$f":"IF(D34<>\"\",VLOOKUP(D34,$J$5:$K$14,2),IF(D31=\"\",\"\",VLOOKUP(LEFT(D31,3),$J$5:$K$14,2)))","v":""}]
[]
[{"$nulls":3},{"$f":"IF(E34<>\"\",E34,IF(D31=\"\",\"\",MID(D31,7,LEN(D31)-6)))","v":""}]
[{"$nulls":3},{"$f":"IF(OR(D37=\"\",AND(D25=\"\",E28=\"\"),AND(D25<>\"\",E28<>\"\")),\"\",CONCATENATE(D37,\" [\",Export!I2,\"]\"))","v":""},{"$nulls":6},{"$f":"IF(OR(D51=\"\",I51=\"\",M51=\"\"),\"\",CONCATENATE(D51,\" [\",I51,\"@\",M51,\"]\"))","v":""}]
[{"$nulls":3},{"$f":"IF(D44=\"\",\"\",CONCATENATE(\"Kosten: \",IF(D40=\"\",\"-\",TEXT(D40,\"#.##0\")),\" € | Termin/Zeitraum: \",TEXT(D44,\"TT.MM.JJJJ\"),IF(F44=\"\",\"\",CONCATENATE(\" - \",TEXT(F44,\"TT.MM.JJJJ\"))),IF(F44-D44>2,\" [1]\",\"\"),IF(D47<>\"\",CONCATENATE(\" [AMS: \",TEXT(D47,\"TT.MM.JJJJ\")),\"\"),IF(F47<>\"\",CONCATENATE(\" / \",TEXT(F47,\"TT.MM.JJJJ\"),\" [2]\"),\"\"),IF(D47<>\"\",\"]\",\"\")))","v":""}]
[]
[{"$nulls":3},{"$f":"CONCATENATE(IF(F44-D44>2,\"Hinweis [1]: Veranstaltung über einen Zeitraum von mehr als zwei Tagen oder mit mehreren Einzelterminen [Ausschreibung beachten]\",\"\"),IF(AND(F44-D44>2,F47<>\"\"),\" | \",\"\"),IF(F47<>\"\",\"Hinweis [2]: Ausschreibung beachten!\",\"\"))","v":""}]
[]
[{"$nulls":3},"Datensatz bitte genau wie ausgewiesen bezeichnen!:",{"$nulls":6},"Ausschreibung bitte genau wie ausgewiesen bezeichnen!:"]
[{"$nulls":3},{"$f":"IF(OR(AND(D25=\"\",E28=\"\"),AND(D25<>\"\",E28<>\"\")),\"\",CONCATENATE(\"daten__\",TEXT(D44,\"JJJJ-MM-TT\"),\"__\",IF(L25=\"x\",\"07-9999\",CONCATENATE(MID(D25,1,2),\"-\",MID(D25,4,4))),\"__\",IF(D31<>\"\",LOWER(LEFT(D31,3)),LOWER(D34)),\".xlsx\"))","v":""},{"$nulls":6},{"$f":"Export!L2","v":""}]

{"sheet":"Export","index":1,"n_rows":2,"n_cols":12,"rows_kept":2}
["lfd. Nummer","Veranstaltung","Ort","Kosten","Datum_A","Datum_E","AMS1","AMS2","Ausrichter","Ansprechpartner","Kontakt","Ausschreibungsname"]
[null,{"$f":"Dateneingabe!D59","v":""},{"$f":"IF(Dateneingabe!D37=\"\",\"\",Dateneingabe!D37)","v":""},{"$f":"IF(Dateneingabe!D40=\"\",\"\",CONCATENATE(Dateneingabe!D40,\" €\"))","v":""},{"$f":"IF(Dateneingabe!D44=\"\",\"\",Dateneingabe!D44)","v":""},{"$f":"IF(Dateneingabe!F44=\"\",\"\",Dateneingabe!F44)","v":""},{"$f":"IF(Dateneingabe!D47=\"\",\"\",Dateneingabe!D47)","v":""},{"$f":"IF(Dateneingabe!F47=\"\",\"\",Dateneingabe!F47)","v":""},{"$f":"IF(AND(Dateneingabe!D25=\"\",Dateneingabe!E28=\"\"),\"\",IF(Dateneingabe!L25=\"x\",Dateneingabe!E28,VLOOKUP(LEFT(Dateneingabe!D25,7),Daten!$B$2:$C$89,2)))","v":""},{"$f":"IF(Dateneingabe!D51=\"\",\"\",Dateneingabe!D51)","v":""},{"$f":"IF(Dateneingabe!I51=\"\",\"\",CONCATENATE(Dateneingabe!I51,\"@\",Dateneingabe!M51))","v":""},{"$f":"IF(OR(AND(Dateneingabe!D25=\"\",Dateneingabe!E28=\"\"),AND(Dateneingabe!D25<>\"\",Dateneingabe!E28<>\"\")),\"\",CONCATENATE(\"veranst__\",TEXT(Dateneingabe!D44,\"JJJJ-MM-TT\"),\"__\",IF(Dateneingabe!L25=\"x\",\"07-9999\",CONCATENATE(MID(Dateneingabe!D25,1,2),\"-\",MID(Dateneingabe!D25,4,4))),\"__\",LOWER(IF(Dateneingabe!D34<>\"\",Dateneingabe!D34,MID(Dateneingabe!D31,1,3))),\".pdf\"))","v":""}]

{"sheet":"Daten","index":2,"n_rows":88,"n_cols":12,"rows_kept":88,"merged":[[0,8,0,9]]}
["V_Auswahl","V_Nr","V_Name",null,"V_Orte",null,"V_Veranstaltungen",null,"V_Kategorien",null,null,"V_Email"]
[{"$f":"B2&\" - \"&C2","v":"07/0001 - VDST"},"07/0001","VDST",null,"Bispingen",null,"AUS - DOSB Trainer C „Sporttauchen“ Aufbaukurs",null,"AUS","TL-, Trainer-C-, JL-Ausbildung u. ä.",null,"tln-ev.de"]
[{"$f":"B3&\" - \"&C3","v":"07/0002 - TLN"},"07/0002","TLN",null,"Braunschweig",null,"AUS - Praxisfortbildung für Tauchausbilder/innen",null,"FVD","Foto | Video",null,"vdst.de"]
["07/0003 - LSB","07/0003","LSB",null,"Braunschweig / Salzgittersee",null,"AUS - TL*-Praxisprüfung | TL-Wiedereinsteiger | „Cross Over“",null,"JFB","Jugend – Ausbildung",null,"1email.eu"]
["07/0004 - VBG","07/0004","VBG",null,"Clausthal Zellerfeld",null,"AUS - TL*/**-Theorieprüfung",null,"JGD","Jugend",null,"24-mail.de"]
["07/0151 - TC Qualle Braunschweig","07/0151","TC Qualle Braunschweig",null,"Cloppenburg",null,"AUS - TL*/**-Theorievorbereitung",null,"MED","Medizin",null,"aol.com"]
["07/0160 - TC Stelle","07/0160","TC Stelle",null,"Delmenhorst",null,"AUS - TLN-Landesausbildertagung „Elefantentreffen“",null,"SON","Allgemeine Veranstaltungen | Sonstiges",null,"aol.de"]
["07/0166 - TG Waspo Hannover","07/0166","TG Waspo Hannover",null,"Diepholz",null,"AUS - Wiedereinsteigerkurs für Tauchausbilder/innen",null,"SPK","Spezialkurse | DTSA",null,"compu-freemail.de"]
["07/0167 - TC Hydra Lingen","07/0167","TC Hydra Lingen",null,"div. (siehe Ausschreibung)",null,"AUS - Wiedereinsteigerkurs für Taucher/innen",null,"TTA","Technisches Tauchen / Apnoe",null,"directbox.com"]
["07/0168 - DUC Salzgitter-Bad","07/0168","DUC Salzgitter-Bad",null,"Frankfurt (Main)",null,"FVD - Fotograf*-Ausbildung",null,"UMW","Umwelt",null,"directbox.net"]
["07/0169 - TUW Nordland","07/0169","TUW Nordland",null,"Gamle Albo (DK)",null,"FVD - Seminar „Bildbearbeitung“",null,"ÜVA","VDST-, LV- u. a. überregionale Veranstaltungen",null,"eclipso.de"]
["07/0170 - WSV Burkana - Abt. Tauchen -","07/0170","WSV Burkana - Abt. Tauchen -",null,"Geeste (b. Lingen)",null,"FVD - Tauchen und Suchen nach Seehasen",{"$nulls":4},"ewetel.net"]
["07/0171 - UC Hannover","07/0171","UC Hannover",null,"Geeste - Speicherbecken (b. Lingen)",null,"JFB - Apnoe und Gewässerkunde im Freigewässer",{"$nulls":4},"firemail.de"]
["07/0172 - TG Jugenddorf  - Abt. Tauchen -","07/0172","TG Jugenddorf  - Abt. Tauchen -",null,"Goslar",null,"JFB - Fortbildung „Tauchen mit Kindern und Jugendlichen“",{"$nulls":4},"freemail-24.com"]
["07/0173 - TSC Gifhorn","07/0173","TSC Gifhorn",null,"Halener See (b. Cloppenburg)",null,"JFB - Tauchen und Zelten mit Kindern und Jugendlichen",{"$nulls":4},"freenet.de"]
["07/0174 - TC Barakuda Mellendorf","07/0174","TC Barakuda Mellendorf",null,"Hamburg",null,"JGD - Arbeitstagung und Weiterbildung",{"$nulls":4},"gmail.com"]
["07/0175 - USC Seegurke Göttingen","07/0175","USC Seegurke Göttingen",null,"Hannover",null,"MED - Erste-Hilfe-Maßnahmen (für Taucher oder sonstige Lebenslagen)",{"$nulls":4},"gmx.de"]
["07/0176 - TC Wolfsburg","07/0176","TC Wolfsburg",null,"Hannover – LSB",null,"MED - Medizin-Praxis (mit AED-Einweisung)",null,null," ",null,"gmx.net"]
["07/0177 - Harzer TG Altenau","07/0177","Harzer TG Altenau",null,"Hannover – Universität",null,"SON - Fackelschwimmen",{"$nulls":4},"hotmail.com"]
["07/0178 - Osteroder TC","07/0178","Osteroder TC",null,"Helgoland",null,"SON - Schatzkistentauchen",{"$nulls":4},"hotmail.de"]
["07/0179 - UWC Manta Wilhelmshaven","07/0179","UWC Manta Wilhelmshaven",null,"Hildesheim",null,"SPK - DTSA* - Theorie und Praxis",{"$nulls":4},"htp.net"]
["07/0180 - TC Cuxhaven","07/0180","TC Cuxhaven",null,"Isenbüttel (b. Gifhorn)",null,"SPK - DTSA* - Theorie und Prüfung",{"$nulls":4},"icloud.com"]
["07/4000 - PSV Oldenburg - Abt. Tauchen u. UWR -","07/4000","PSV Oldenburg - Abt. Tauchen u. UWR -",null,"Kas (Türkei)",null,"SPK - DTSA* - Theorieprüfung",{"$nulls":4},"lycos.com"]
["07/4001 - UC Osnabrück","07/4001","UC Osnabrück",null,"Kiel",null,"SPK - DTSA* - Praxistauchgänge",{"$nulls":4},"mail.de"]
["07/4006 - TC Hannover","07/4006","TC Hannover",null,"Kreidesee Hemmoor",null,"SPK - DTSA**/*** - Praxistauchgänge",{"$nulls":4},"mc-free.com"]
["07/4021 - TG Papenburg","07/4021","TG Papenburg",null,"Kreidesee Hemmoor / Nordhausen",null,"SPK - DTSA**/*** - Theorie und Prüfung",{"$nulls":4},"me.com"]
["07/4030 - Delmenhorster Sporttaucher","07/4030","Delmenhorster Sporttaucher",null,"Lingen (Ems)",null,"SPK - DTSA**/*** - Theorieprüfung",{"$nulls":4},"osnanet.de"]
["07/4067 - Emder TC Delphin","07/4067","Emder TC Delphin",null,"Lohnde (b. Hannover)",null,"SPK - DTSA*/**/*** - Theorie und Prüfung",{"$nulls":4},"outlook.com"]
["07/4073 - USC Braunschweig - Abt. Tauchen -","07/4073","USC Braunschweig - Abt. Tauchen -",null,"n.n.",null,"SPK - Kombiseminar „SK Orientierung und Gruppenführung“",{"$nulls":4},"smart-mail.de"]
["07/4095 - Eintracht Hildesheim - Abt. Tauchen -","07/4095","Eintracht Hildesheim - Abt. Tauchen -",null,"Nordhausen",null,"SPK - SK Gruppenführung",{"$nulls":4},"techmail.com"]
["07/4121 - TC Neustadt","07/4121","TC Neustadt",null,"Odessa (Ukraine)",null,"SPK - SK Nachttauchen",{"$nulls":4},"t-online.de"]
["07/4130 - TSV Gronau - Abt. Tauchen -","07/4130","TSV Gronau - Abt. Tauchen -",null,"Offenbach",null,"SPK - SK Orientierung beim Tauchen",{"$nulls":4},"uni.de"]
["07/4134 - TSC Wunstorf","07/4134","TSC Wunstorf",null,"Oldenburg",null,"SPK - SK Tauchsicherheit und Rettung",{"$nulls":4},"vcmail.de"]
["07/4135 - TSV Anderten - Abt. Tauchen -","07/4135","TSV Anderten - Abt. Tauchen -",null,"Osterholz-Scharmbeck",null,"SPK - SK Trockentauchen",{"$nulls":4},"web.de"]
["07/4136 - VfL Wolfsburg Diving Team","07/4136","VfL Wolfsburg Diving Team",null,"Ostrhauderfehn",null,"SPK - SK Wracktauchen",{"$nulls":4},"x-mail.net"]
["07/4137 - Heidjer TC Celle","07/4137","Heidjer TC Celle",null,"Ostsee (s. Ausschreibung)",null,"TTA - CCR-REC-Taucher",{"$nulls":4},"yahoo.de"]
["07/4138 - TC Schlaopmütz-Divers","07/4138","TC Schlaopmütz-Divers",null,"Papenburg",null,"TTA - CCR-TEC-Trimix*-Taucher"]
["07/4139 - SSV UNION 06 - Abt. Tauchen -","07/4139","SSV UNION 06 - Abt. Tauchen -",null,"Preußisch Oldendorf",null,"TTA - DTSA Gasblender"]
["07/4141 - VSK Moorteufel - Abt. Tauchen -","07/4141","VSK Moorteufel - Abt. Tauchen -",null,"Salzgitter",null,"TTA - DTSA Nitrox I"]
["07/4143 - UWR-Club Salzgitter","07/4143","UWR-Club Salzgitter",null,"Salzhemmendorf",null,"TTA - DTSA Nitrox I"]
["07/4144 - TC Delphin Cloppenburg","07/4144","TC Delphin Cloppenburg",null,"Schwarmstedt",null,"TTA - DTSA Nitrox II"]
["07/4145 - TC Schaumburg","07/4145","TC Schaumburg",null,"Sögel",null,"TTA - DTSA Nitrox II (Teil 1)"]
["07/4146 - Hann. Schwimmverein v. 1892 - Abt. Tauchen -","07/4146","Hann. Schwimmverein v. 1892 - Abt. Tauchen -",null,"Storkau",null,"TTA - DTSA Nitrox II (Teil 2)"]
["07/4147 - Triton Diving Club Celle","07/4147","Triton Diving Club Celle",null,"Uni Hannover",null,"TTA - DTSA Nitrox-TL-Prüfung"]
["07/4149 - Wasserfreunde Bispingen","07/4149","Wasserfreunde Bispingen",null,"Wildschütz",null,"TTA - DTSA Nitrox-TL-Prüfung (Teil 1)"]
["07/4150 - TWG 1861 Göttingen - Abt. Tauchen -","07/4150","TWG 1861 Göttingen - Abt. Tauchen -",null,"Wilhelmshaven",null,"TTA - DTSA Nitrox-TL-Prüfung (Teil 2)"]
["07/4151 - Wissenschaftliche TG Clausthal","07/4151","Wissenschaftliche TG Clausthal",null,"Wolfsburg",null,"TTA - DTSA TEC Basiskurs"]
["07/4152 - Hamelner TC","07/4152","Hamelner TC",{"$nulls":3},"TTA - DTSA Trimix"]
["07/4153 - SG Diepholz - Abt. Tauchen -","07/4153","SG Diepholz - Abt. Tauchen -",{"$nulls":3},"TTA - DTSA Trimix (Teil 1)"]
["07/4154 - TC Bad Harzburg","07/4154","TC Bad Harzburg",{"$nulls":3},"TTA - DTSA Trimix (Teil 2)"]
["07/4156 - MTV Freiheit - Abt. Tauchen -","07/4156","MTV Freiheit - Abt. Tauchen -",{"$nulls":3},"TTA - DTSA Trimix II"]
["07/4158 - 1. Uelzer TV","07/4158","1. Uelzer TV",{"$nulls":3},"TTA - DTSA Trimix II (Teil 1)"]
["07/4159 - TC Beluga Aurich","07/4159","TC Beluga Aurich",{"$nulls":3},"TTA - DTSA Trimix II (Teil 2)"]
["07/4160 - Barakuda Club Uelzen","07/4160","Barakuda Club Uelzen",{"$nulls":3},"TTA - DTSA Triox"]
["07/4163 - Dive Team Lohnde","07/4163","Dive Team Lohnde",{"$nulls":3},"TTA - Rebreather Schnuppertauchen"]
["07/4164 - TC Ulendiver Peine","07/4164","TC Ulendiver Peine",{"$nulls":3},"TTA - SCR-REC-Taucher"]
["07/4166 - OLDENBURGER DELPHINE Tauchsport","07/4166","OLDENBURGER DELPHINE Tauchsport",{"$nulls":3},"TTA - SK Apnoe I"]
["07/4167 - TC Nautilus Braunschweig","07/4167","TC Nautilus Braunschweig",{"$nulls":3},"TTA - SK Apnoe II"]
["07/4169 - TSG Emmerthal - Abt. Tauchen -","07/4169","TSG Emmerthal - Abt. Tauchen -",{"$nulls":3},"UMW - Lebensraum See"]
["07/4170 - Göttinger Skizunft - Abt. Tauchen -","07/4170","Göttinger Skizunft - Abt. Tauchen -",{"$nulls":3},"UMW - SK Gewässerkunde"]
["07/4171 - TSV Friesen Hänigsen Tauchen","07/4171","TSV Friesen Hänigsen Tauchen",{"$nulls":3},"UMW - SK Meeresbiologie"]
["07/4172 - TSC Einbeck","07/4172","TSC Einbeck",{"$nulls":3},"UMW - SK Süßwasserbiologie"]
["07/4173 - TG Pulpo Badenhausen","07/4173","TG Pulpo Badenhausen",{"$nulls":3},"ÜVA - Kompressorseminar „Betreiber“"]
["07/4174 - TG Lingen","07/4174","TG Lingen",{"$nulls":3},"ÜVA - Kompressorseminar „Technik“"]
["07/4175 - TC Manati","07/4175","TC Manati",{"$nulls":3},"ÜVA - Seminar „Brandschutz im Verein“"]
["07/4176 - TG Beluga","07/4176","TG Beluga",{"$nulls":3},"ÜVA - Seminar „Gefährdungsanalyse Kompressor“"]
[{"$f":"B67&\" - \"&C67","v":"07/4178 - TC Seestern"},"07/4178","TC Seestern",{"$nulls":3},"ÜVA - Seminar „Wartung von Atemreglern und Jackets“"]
["07/4179 - Tauchsport u. Umwelt Osnabrück","07/4179","Tauchsport u. Umwelt Osnabrück",{"$nulls":3},"ÜVA - Zusatzqualifikation „Tauchen mit behinderten Menschen“ (Modul 1)"]
["07/4180 - Haubentaucher Emden","07/4180","Haubentaucher Emden",{"$nulls":3},"ÜVA - Zusatzqualifikation „Tauchen mit behinderten Menschen“ (Modul 2)"]
["07/4182 - TC Barsinghausen","07/4182","TC Barsinghausen"]
["07/4183 - TC Longimanus","07/4183","TC Longimanus"]
["07/4184 - TC Lindhorst","07/4184","TC Lindhorst"]
["07/4185 - TSC Bramsche","07/4185","TSC Bramsche"]
["07/4186 - Oldenburger Yachtclub - Abt. Tauchen -","07/4186","Oldenburger Yachtclub - Abt. Tauchen -"]
["07/4187 - TG v. 1848 Northeim - Abt. Tauchen -","07/4187","TG v. 1848 Northeim - Abt. Tauchen -"]
["07/4188 - TSG Scubi","07/4188","TSG Scubi"]
["07/4189 - Beluga Oldenburg","07/4189","Beluga Oldenburg"]
["07/4191 - TC Hibaru","07/4191","TC Hibaru"]
["07/4192 - Taucherflöhe Emsland","07/4192","Taucherflöhe Emsland"]
["07/4193 - TKW Tauchteam Nienburg","07/4193","TKW Tauchteam Nienburg"]
["07/4194 - Aquanautic Club Hannover","07/4194","Aquanautic Club Hannover"]
["07/4195 - Lazy Divers Oldenburg","07/4195","Lazy Divers Oldenburg"]
["07/4196 - TC Hai-Society Lingen","07/4196","TC Hai-Society Lingen"]
["07/4198 - Hümmlinger TC","07/4198","Hümmlinger TC"]
["07/4199 - Freedivers Göttingen","07/4199","Freedivers Göttingen"]
["07/4200 - TC Seeigel","07/4200","TC Seeigel"]
["07/4201 - TC Koralle","07/4201","TC Koralle"]
["07/4202 - Ivans TC","07/4202","Ivans TC"]